fUSD/lending_fUSD_20240225
["ID","MTS","AMOUNT","RATE_DAILY","PERIOD"]
[315123397,1708863043259,-500.0,0.00026376,2]
[315123398,1708863043269,-542.3120422,0.00026376,2]
[315123399,1708863043277,-507.29284187,0.00026376,2]
[315123400,1708863043287,-500.0,0.00026376,2]
[315123401,1708863043297,-539.95494696,0.00026376,2]
[315123402,1708863043309,-530.39863048,0.00026376,2]
[315123403,1708863043318,-508.95560696,0.00026376,2]
[315123404,1708863043327,-523.01328049,0.00026376,2]
[315123405,1708863043336,-518.99109433,0.00026376,2]
[315123406,1708863043345,-520.02177351,0.00026376,2]
[315123407,1708863043355,-500.0,0.00026376,2]
[315123408,1708863043364,-500.0,0.00026376,2]
[315123409,1708863043374,-530.01699444,0.00026376,2]
[315123410,1708863043383,-500.0,0.00026376,2]
[315123411,1708863043392,-517.02652947,0.00026376,2]
[315123412,1708863043402,-500.0,0.00026376,2]
[315123413,1708863043412,-518.50852208,0.00026376,2]
[315123414,1708863043422,-500.0,0.00026376,2]
[315123415,1708863043432,-500.0,0.00026376,2]
[315123416,1708863043441,-514.04450243,0.00026376,2]
[315123417,1708863043451,-500.0,0.00026376,2]
[315123418,1708863043460,-500.0,0.00026376,2]
[315123419,1708863043469,-500.0,0.00026376,2]
[315123420,1708863043480,-513.51601237,0.00026376,2]
[315123421,1708863043489,-528.13973247,0.00026376,2]
[315123422,1708863043498,-500.0,0.00026376,2]
[315123423,1708863043507,-525.72747493,0.00026376,2]
[315123424,1708863043516,-500.0,0.00026376,2]
[315123425,1708863043526,-500.0,0.00026376,2]
[315123426,1708863043536,-500.0,0.00026376,2]
[315123427,1708863043545,-533.27369307,0.00026376,2]
[315123428,1708863043554,-500.0,0.00026376,2]
[315123429,1708863043563,-500.01347327,0.00026376,2]
[315123430,1708863043572,-507.93508518,0.00026376,2]
[315123431,1708863043582,-500.0,0.00026376,2]
[315123432,1708863043591,-500.0,0.00026376,2]
[315123433,1708863043600,-500.0,0.00026376,2]
[315123434,1708863043609,-510.09212225,0.00026376,2]
[315123435,1708863043618,-536.33707778,0.00026376,2]
[315123436,1708863043627,-500.0,0.00026376,2]
[315123437,1708863043636,-518.35505093,0.00026376,2]
[315123438,1708863043645,-500.0,0.00026376,2]
[315123439,1708863043654,-500.0,0.00026376,2]
[315123440,1708863043663,-514.25635748,0.00026376,2]
[315123441,1708863043673,-521.17496545,0.00026376,2]
[315123442,1708863043682,-517.18604973,0.00026376,2]
[315123443,1708863043691,-500.0,0.00026376,2]
[315123444,1708863043701,-502.47660718,0.00026376,2]
[315123445,1708863043710,-512.85596535,0.00026376,2]
[315123446,1708863043718,-795.76,0.00026376,2]
[315123447,1708863043727,-500.0,0.00026376,2]
[315123448,1708863043737,-500.0,0.00026376,2]
[315123449,1708863043746,-500.0,0.00026376,2]
[315123450,1708863043757,-500.0,0.00026376,2]
[315123451,1708863043766,-500.0,0.00026376,2]
[315123452,1708863043775,-550.88954196,0.00026376,2]
[315123453,1708863043784,-512.02252319,0.00026376,2]
[315123454,1708863043793,-500.0,0.00026376,2]
[315123455,1708863043802,-507.75740937,0.00026376,2]
[315123456,1708863043811,-500.0,0.00026376,2]
[315123457,1708863043819,-518.29869082,0.00026376,2]
[315123458,1708863043828,-500.0,0.00026376,2]
[315123459,1708863043837,-156.37452329,0.00026376,2]
[315123460,1708863043846,-380.9114533,0.00026376,2]
[315123461,1708863043855,-514.73351754,0.00026376,2]
[315123462,1708863043864,-500.0,0.00026376,2]
[315123463,1708863043873,-500.0,0.00026376,2]
[315123464,1708863043882,-500.0,0.00026376,2]
[315123465,1708863043891,-504.36000938,0.00026376,2]
[315123466,1708863043900,-506.27492587,0.00026376,2]
[315123467,1708863043910,-500.0,0.00026376,2]
[315123468,1708863043919,-491.881236,0.00026376,2]
[315123469,1708863043928,-500.0,0.00026376,2]
[315123470,1708863043937,-500.0,0.00026376,2]
[315123471,1708863043946,-515.69302081,0.00026376,2]
[315123472,1708863043955,-500.0,0.00026376,2]
[315123473,1708863043964,-535.56055004,0.00026376,2]
[315123474,1708863043974,-546.07081283,0.00026376,2]
[315123475,1708863043983,-513.91729238,0.00026376,2]
[315123476,1708863043992,-515.85952031,0.00026376,2]
[315123477,1708863044001,-678.15,0.00026376,2]
[315123478,1708863044010,-500.0,0.00026376,2]
[315123479,1708863044019,-510.14428756,0.00026376,2]
[315123480,1708863044028,-500.0,0.00026376,2]
[315123481,1708863044037,-300.79074241,0.00026376,2]
[315123482,1708863044046,-500.0,0.00026376,2]
[315123483,1708863044055,-500.0,0.00026376,2]
[315123484,1708863044064,-515.93314543,0.00026376,2]
[315123485,1708863044073,-500.0,0.00026376,2]
[315123486,1708863044083,-500.0,0.00026376,2]
[315123487,1708863044092,-500.0,0.00026376,2]
[315123488,1708863044102,-514.68487557,0.00026376,2]
[315123489,1708863044111,-473.42493124,0.00026376,2]
[315123490,1708863044120,-500.0,0.00026376,2]
[315123491,1708863044129,-546.97068399,0.00026376,2]
[315123492,1708863044138,-500.0,0.00026376,2]
[315123493,1708863044147,-500.0,0.00026376,2]
[315123494,1708863044157,-500.0,0.00026376,2]
[315123495,1708863044166,-516.26357997,0.00026376,2]
[315123496,1708863044175,-504.98102862,0.00026376,2]
[315123497,1708863044185,-318.32861404,0.00026376,2]
[315123498,1708863044194,-500.0,0.00026376,2]
[315123499,1708863044204,-500.0,0.00026376,2]
[315123500,1708863044213,-936.3,0.00026376,2]
[315123501,1708863044222,-500.0,0.00026376,2]
[315123502,1708863044232,-500.0,0.00026376,2]
[315123503,1708863044241,-513.92938443,0.00026376,2]
[315123504,1708863044250,-500.0,0.00026376,2]
[315123505,1708863044259,-500.0,0.00026376,2]
[315123506,1708863044269,-500.0,0.00026376,2]
[315123507,1708863044278,-510.23298161,0.00026376,2]
[315123508,1708863044287,-717.11,0.00026376,2]
[315123509,1708863044299,-514.37054861,0.00026376,2]
[315123510,1708863044312,-500.0,0.00026376,2]
[315123511,1708863044321,-534.63597487,0.00026376,2]
[315123512,1708863044330,-500.0,0.00026376,2]
[315123513,1708863044340,-500.0,0.00026376,2]
[315123514,1708863044349,-193.35864735,0.00026376,2]
[315123515,1708863044359,-500.0,0.00026376,2]
[315123516,1708863044368,-513.6054173,0.00026376,2]
[315123517,1708863044377,-500.0,0.00026376,2]
[315123518,1708863044387,-500.0,0.00026376,2]
[315123519,1708863044396,-500.0,0.00026376,2]
[315123520,1708863044406,-500.0,0.00026376,2]
[315123521,1708863044414,-150.7884188,0.00026376,2]
[315123522,1708863044426,-500.0,0.00026376,2]
[315123523,1708863044434,-519.0489074,0.00026376,2]
[315123524,1708863044444,-500.0,0.00026376,2]
[315123525,1708863044454,-398.35996543,0.00026376,2]
[315123526,1708863044464,-510.85131728,0.00026376,2]
[315123527,1708863044474,-500.0,0.00026376,2]
[315123528,1708863044484,-524.49715048,0.00026376,2]
[315123529,1708863044493,-500.0,0.00026376,2]
[315123530,1708863044502,-300.0,0.00026376,2]
[315123531,1708863044511,-521.62274299,0.00026376,2]
[315123532,1708863044520,-527.90508847,0.00026376,2]
[315123533,1708863044530,-500.0,0.00026376,2]
[315123534,1708863044540,-500.0,0.00026376,2]
[315123535,1708863044550,-500.0,0.00026376,2]
[315123536,1708863044560,-339.0,0.00026376,2]
[315123537,1708863044570,-508.39729456,0.00026376,2]
[315123538,1708863044579,-580.34,0.00026376,2]
[315123539,1708863044588,-523.99864001,0.00026376,2]
[315123540,1708863044598,-507.31569603,0.00026376,2]
[315123541,1708863044607,-150.0,0.00026376,2]
[315123542,1708863044616,-637.01235604,0.00026376,2]
[315123543,1708863044625,-151.13852706,0.00026376,2]
[315123544,1708863044635,-500.0,0.00026376,2]
[315123545,1708863044644,-500.0,0.00026376,2]
[315123546,1708863044653,-500.0,0.00026376,2]
[315123547,1708863044662,-514.1249504,0.00026376,2]
[315123548,1708863044671,-517.58106038,0.00026376,2]
[315123549,1708863044681,-154.813752,0.00026376,2]
[315123550,1708863044690,-500.0,0.00026376,2]
[315123551,1708863044700,-500.0,0.00026376,2]
[315123552,1708863044709,-253.89530172,0.00026376,2]
[315123553,1708863044718,-500.0,0.00026376,2]
[315123554,1708863044728,-151.8021872,0.00026376,2]
[315123555,1708863044737,-500.0,0.00026376,2]
[315123556,1708863044747,-500.0,0.00026376,2]
[315123557,1708863044756,-500.0,0.00026376,2]
[315123558,1708863044766,-500.0,0.00026376,2]
[315123559,1708863044776,-519.98641988,0.00026376,2]
[315123560,1708863044785,-432.32628049,0.00026376,2]
[315123561,1708863044794,-500.0,0.00026376,2]
[315123562,1708863044804,-299.57964,0.00026376,2]
[315123563,1708863044813,-570.09,0.00026376,2]
[315123564,1708863044822,-500.0,0.00026376,2]
[315123565,1708863044831,-500.0,0.00026376,2]
[315123566,1708863044840,-500.0,0.00026376,2]
[315123567,1708863044850,-507.82086712,0.00026376,2]
[315123568,1708863044859,-151.8325264,0.00026376,2]
[315123569,1708863044869,-500.0,0.00026376,2]
[315123570,1708863044879,-557.4078164,0.00026376,2]
[315123571,1708863044888,-500.0,0.00026376,2]
[315123572,1708863044898,-267.6244784,0.00026376,2]
[315123573,1708863044907,-151.7969976,0.00026376,2]
[315123574,1708863044917,-500.0,0.00026376,2]
[315123575,1708863044927,-159.887584,0.00026376,2]
[315123576,1708863044936,-515.42875088,0.00026376,2]
[315123577,1708863044946,-500.0,0.00026376,2]
[315123578,1708863044956,-500.0,0.00026376,2]
[315123579,1708863044965,-509.49234396,0.00026376,2]
[315123580,1708863044975,-201.7320274,0.00026376,2]
[315123581,1708863044985,-356.05196996,0.00026376,2]
[315123582,1708863044995,-504.17314151,0.00026376,2]
[315123583,1708863045005,-500.0,0.00026376,2]
[315123584,1708863045014,-500.0,0.00026376,2]
[315123585,1708863045024,-500.0,0.00026376,2]
[315123586,1708863045034,-500.0,0.00026376,2]
[315123587,1708863045043,-500.0,0.00026376,2]
[315123588,1708863045053,-513.0642158,0.00026376,2]
[315123589,1708863045063,-168.8137958,0.00026376,2]
[315123590,1708863045072,-500.0,0.00026376,2]
[315123591,1708863045082,-500.0,0.00026376,2]
[315123592,1708863045092,-500.0,0.00026376,2]
[315123593,1708863045101,-150.7884188,0.00026376,2]
[315123594,1708863045111,-509.77152493,0.00026376,2]
[315123595,1708863045122,-500.0,0.00026376,2]
[315123596,1708863045134,-500.0,0.00026376,2]
[315123597,1708863045143,-509.73989077,0.00026376,2]
[315123598,1708863045153,-172.8658754,0.00026376,2]
[315123599,1708863045163,-500.0,0.00026376,2]
[315123600,1708863045173,-480.57904641,0.00026376,2]
[315123601,1708863045182,-548.17914692,0.00026376,2]
[315123602,1708863045192,-500.0,0.00026376,2]
[315123603,1708863045202,-500.0,0.00026376,2]
[315123604,1708863045211,-506.94121999,0.00026376,2]
[315123605,1708863045220,-500.0,0.00026376,2]
[315123606,1708863045230,-500.0,0.00026376,2]
[315123607,1708863045239,-508.92751965,0.00026376,2]
[315123608,1708863045249,-500.0,0.00026376,2]
[315123609,1708863045258,-150.8637678,0.00026376,2]
[315123610,1708863045268,-500.0,0.00026376,2]
[315123611,1708863045278,-506.75925362,0.00026376,2]
[315123612,1708863045287,-174.16014168,0.00026376,2]
[315123613,1708863045297,-500.0,0.00026376,2]
[315123614,1708863045310,-397.82369264,0.00026376,2]
[315123615,1708863045319,-602.21610236,0.00026376,2]
[315123616,1708863045328,-500.0,0.00026376,2]
[315123617,1708863045339,-500.0,0.00026376,2]
[315123618,1708863045349,-156.73944284,0.00026376,2]
[315123619,1708863045359,-507.34153952,0.00026376,2]
[315123620,1708863045369,-348.56935365,0.00026376,2]
[315123621,1708863045379,-500.0,0.00026376,2]
[315123622,1708863045389,-204.753672,0.00026376,2]
[315123623,1708863045399,-500.0,0.00026376,2]
[315123624,1708863045408,-522.27196573,0.00026376,2]
[315123625,1708863045419,-500.0,0.00026376,2]
[315123626,1708863045428,-151.7870176,0.00026376,2]
[315123627,1708863045438,-516.59333367,0.00026376,2]
[315123628,1708863045448,-355.5383982,0.00026376,2]
[315123629,1708863045457,-500.0,0.00026376,2]
[315123630,1708863045467,-500.0,0.00026376,2]
[315123631,1708863045476,-500.0,0.00026376,2]
[315123632,1708863045486,-500.0,0.00026376,2]
[315123633,1708863045495,-164.94156777,0.00026376,2]
[315123634,1708863045505,-502.89,0.00026376,2]
[315123635,1708863045514,-500.0,0.00026376,2]
[315123636,1708863045524,-500.0,0.00026376,2]
[315123637,1708863045534,-189.942867,0.00026376,2]
[315123638,1708863045543,-500.0,0.00026376,2]
[315123639,1708863045553,-164.74803951,0.00026376,2]
[315123640,1708863045562,-150.8034886,0.00026376,2]
[315123641,1708863045572,-197.02177517,0.00026376,2]
[315123642,1708863045582,-505.11878447,0.00026376,2]
[315123643,1708863045592,-500.0,0.00026376,2]
[315123644,1708863045601,-807.86,0.00026376,2]
[315123645,1708863045611,-155.7969816,0.00026376,2]
[315123646,1708863045620,-500.0,0.00026376,2]
[315123647,1708863045630,-470.31032217,0.00026376,2]
[315123648,1708863045639,-507.61,0.00026376,2]
[315123649,1708863045649,-351.10109047,0.00026376,2]
[315123650,1708863045659,-500.0,0.00026376,2]
[315123651,1708863045668,-500.0,0.00026376,2]
[315123652,1708863045678,-155.75978623,0.00026376,2]
[315123653,1708863045688,-539.13673949,0.00026376,2]
[315123654,1708863045698,-203.7345144,0.00026376,2]
[315123655,1708863045708,-511.04015978,0.00026376,2]
[315123656,1708863045719,-500.0,0.00026376,2]
[315123657,1708863045729,-203.4316864,0.00026376,2]
[315123658,1708863045741,-499.33386448,0.00026376,2]
[315123659,1708863045750,-500.0,0.00026376,2]
[315123660,1708863045760,-500.0,0.00026376,2]
[315123661,1708863045770,-299.81945981,0.00026376,2]
[315123662,1708863045779,-500.0,0.00026376,2]
[315123663,1708863045789,-349.47465,0.00026376,2]
[315123664,1708863045799,-500.0,0.00026376,2]
[315123665,1708863045808,-513.76392779,0.00026376,2]
[315123666,1708863045819,-338.491161,0.00026376,2]
[315123667,1708863045828,-500.0,0.00026376,2]
[315123668,1708863045837,-500.0,0.00026376,2]
[315123669,1708863045847,-179.747784,0.00026376,2]
[315123670,1708863045857,-500.0,0.00026376,2]
[315123671,1708863045867,-500.0,0.00026376,2]
[315123672,1708863045877,-511.28753222,0.00026376,2]
[315123673,1708863045887,-518.41578631,0.00026376,2]
[315123674,1708863045897,-500.0,0.00026376,2]
[315123675,1708863045906,-500.0,0.00026376,2]
[315123676,1708863045916,-528.5208923,0.00026376,2]
[315123677,1708863045926,-410.3589592,0.00026376,2]
[315123678,1708863045936,-244.8493,0.00026376,2]
[315123679,1708863045946,-548.58851636,0.00026376,2]
[315123680,1708863045956,-500.0,0.00026376,2]
[315123681,1708863045965,-156.65894666,0.00026376,2]
[315123683,1708863045975,-510.52119647,0.00026376,2]
[315123684,1708863045986,-248.8499028,0.00026376,2]
[315123686,1708863045995,-500.0,0.00026376,2]
[315123688,1708863046005,-249.8493,0.00026376,2]
[315123689,1708863046015,-509.49065257,0.00026376,2]
[315123690,1708863046025,-500.0,0.00026376,2]
[315123691,1708863046035,-228.11923698,0.00026376,2]
[315123692,1708863046045,-500.0,0.00026376,2]
[315123693,1708863046056,-261.90312119,0.00026376,2]
[315123694,1708863046066,-179.801676,0.00026376,2]
[315123695,1708863046076,-500.0,0.00026376,2]
[315123696,1708863046085,-513.418703,0.00026376,2]
[315123697,1708863046095,-219.625868,0.00026376,2]
[315123698,1708863046105,-527.64388869,0.00026376,2]
[315123699,1708863046115,-500.0,0.00026376,2]
[315123700,1708863046125,-500.0,0.00026376,2]
[315123701,1708863046134,-500.0,0.00026376,2]
[315123702,1708863046145,-500.0,0.00026376,2]
[315123703,1708863046155,-500.0,0.00026376,2]
[315123704,1708863046166,-538.88029471,0.00026376,2]
[315123705,1708863046176,-500.0,0.00026376,2]
[315123706,1708863046186,-500.0,0.00026376,2]
[315123707,1708863046195,-634.20318975,0.00026376,2]
[315123708,1708863046205,-500.0,0.00026376,2]
[315123709,1708863046215,-500.0,0.00026376,2]
[315123710,1708863046224,-500.0,0.00026376,2]
[315123711,1708863046234,-401.20809817,0.00026376,2]
[315123712,1708863046245,-500.0,0.00026376,2]
[315123713,1708863046255,-532.56,0.00026376,2]
[315123714,1708863046266,-500.0,0.00026376,2]
[315123715,1708863046275,-150.0,0.00026376,2]
[315123716,1708863046285,-500.0,0.00026376,2]
[315123717,1708863046296,-511.9030797,0.00026376,2]
[315123718,1708863046308,-500.0,0.00026376,2]
[315123719,1708863046318,-500.0,0.00026376,2]
[315123720,1708863046328,-525.00743594,0.00026376,2]
[315123721,1708863046338,-500.0,0.00026376,2]
[315123722,1708863046349,-351.0570277,0.00026376,2]
[315123723,1708863046359,-505.47704436,0.00026376,2]
[315123724,1708863046369,-500.0,0.00026376,2]
[315123725,1708863046379,-514.41865087,0.00026376,2]
[315123726,1708863046389,-500.0,0.00026376,2]
[315123727,1708863046401,-500.0,0.00026376,2]
[315123728,1708863046411,-531.41703323,0.00026376,2]
[315123729,1708863046421,-500.0,0.00026376,2]
[315123730,1708863046431,-518.32693635,0.00026376,2]
[315123731,1708863046441,-500.0,0.00026376,2]
[315123732,1708863046450,-500.0,0.00026376,2]
[315123733,1708863046460,-503.10906157,0.00026376,2]
[315123734,1708863046469,-834.18,0.00026376,2]
[315123735,1708863046479,-508.66942873,0.00026376,2]
[315123736,1708863046490,-520.42476085,0.00026376,2]
[315123737,1708863046500,-600.59707626,0.00026376,2]
[315123738,1708863046509,-500.0,0.00026376,2]
[315123739,1708863046519,-522.08351874,0.00026376,2]
[315123740,1708863046529,-500.0,0.00026376,2]
[315123741,1708863046544,-500.0,0.00026376,2]
[315123742,1708863046555,-500.0,0.00026376,2]
[315123743,1708863046564,-1118.39,0.00026376,2]
[315123744,1708863046574,-513.25415998,0.00026376,2]
[315123745,1708863046584,-500.0,0.00026376,2]
[315123746,1708863046594,-500.0,0.00026376,2]
[315123747,1708863046604,-500.0,0.00026376,2]
[315123748,1708863046614,-511.61427463,0.00026376,2]
[315123749,1708863046624,-500.0,0.00026376,2]
[315123750,1708863046634,-500.0,0.00026376,2]
[315123751,1708863046643,-500.0,0.00026376,2]
[315123752,1708863046653,-524.66911166,0.00026376,2]
[315123753,1708863046663,-500.0,0.00026376,2]
[315123754,1708863046673,-500.0,0.00026376,2]
[315123755,1708863046683,-523.52901778,0.00026376,2]
[315123756,1708863046693,-500.0,0.00026376,2]
[315123757,1708863046703,-500.0,0.00026376,2]
[315123758,1708863046713,-500.0,0.00026376,2]
[315123759,1708863046723,-508.00947945,0.00026376,2]
[315123760,1708863046735,-505.64626508,0.00026376,2]
[315123761,1708863046745,-500.0,0.00026376,2]
[315123762,1708863046755,-500.0,0.00026376,2]
[315123763,1708863046764,-500.0,0.00026376,2]
[315123764,1708863046774,-500.0,0.00026376,2]
[315123765,1708863046783,-508.75616762,0.00026376,2]
[315123766,1708863046795,-515.74358294,0.00026376,2]
[315123767,1708863046806,-504.08302163,0.00026376,2]
[315123768,1708863046816,-500.0,0.00026376,2]
[315123769,1708863046826,-500.0,0.00026376,2]
[315123770,1708863046838,-2851.9,0.00026376,2]
[315123771,1708863046848,-500.0,0.00026376,2]
[315123772,1708863046858,-500.0,0.00026376,2]
[315123773,1708863046868,-500.0,0.00026376,2]
[315123774,1708863046878,-500.0,0.00026376,2]
[315123775,1708863046888,-500.0,0.00026376,2]
[315123776,1708863046898,-500.0,0.00026376,2]
[315123777,1708863046907,-770.23,0.00026376,2]
[315123778,1708863046917,-500.0,0.00026376,2]
[315123779,1708863046927,-511.59290713,0.00026376,2]
[315123780,1708863046937,-500.0,0.00026376,2]
[315123781,1708863046948,-250.8236474,0.00026376,2]
[315123782,1708863046958,-500.0,0.00026376,2]
[315123783,1708863046968,-523.05872498,0.00026376,2]
[315123784,1708863046977,-500.0,0.00026376,2]
[315123785,1708863046988,-504.62990977,0.00026376,2]
[315123786,1708863046997,-2697.16,0.00026376,2]
[315123787,1708863047007,-500.0,0.00026376,2]
[315123788,1708863047017,-526.4752068,0.00026376,2]
[315123789,1708863047027,-500.0,0.00026376,2]
[315123790,1708863047037,-502.95598085,0.00026376,2]
[315123791,1708863047047,-640.34,0.00026376,2]
[315123792,1708863047057,-500.0,0.00026376,2]
[315123793,1708863047067,-500.0,0.00026376,2]
[315123794,1708863047077,-500.0,0.00026376,2]
[315123795,1708863047087,-500.0,0.00026376,2]
[315123796,1708863047097,-500.0,0.00026376,2]
[315123797,1708863047107,-518.80379182,0.00026376,2]
[315123798,1708863047117,-500.0,0.00026376,2]
[315123799,1708863047127,-500.0,0.00026376,2]
[315123800,1708863047136,-3160.57,0.00026376,2]
[315123801,1708863047146,-500.0,0.00026376,2]
[315123802,1708863047156,-952.91,0.00026376,2]
[315123803,1708863047167,-953.46,0.00026376,2]
[315123804,1708863047177,-1202.74,0.00026376,2]
[315123805,1708863047187,-500.0,0.00026376,2]
[315123806,1708863047197,-503.91392639,0.00026376,2]
[315123807,1708863047207,-554.46646941,0.00026376,2]
[315123808,1708863047217,-500.0,0.00026376,2]
[315123809,1708863047227,-500.0,0.00026376,2]
[315123810,1708863047237,-506.86418801,0.00026376,2]
[315123811,1708863047247,-518.41983513,0.00026376,2]
[315123812,1708863047256,-6308.85,0.00026376,2]
[315123813,1708863047266,-2397.22,0.00026376,2]
[315123814,1708863047275,-1747.33,0.00026376,2]
[315123815,1708863047285,-500.0,0.00026376,2]
[315123816,1708863047296,-500.0,0.00026376,2]
[315123817,1708863047308,-3566.16,0.00026376,2]
[315123818,1708863047318,-500.0,0.00026376,2]
[315123819,1708863047328,-525.51,0.00026376,2]
[315123820,1708863047338,-500.0,0.00026376,2]
[315123821,1708863047349,-666.59,0.00026376,2]
[315123822,1708863047358,-526.148031,0.00026376,2]
[315123823,1708863047368,-500.0,0.00026376,2]
[315123824,1708863047377,-500.0,0.00026376,2]
[315123825,1708863047388,-17945.78,0.00026376,2]
[315123826,1708863047398,-525.42286051,0.00026376,2]
[315123827,1708863047645,-537.29979313,0.00026376,2]
[315123828,1708863047664,-507.79702343,0.00026376,2]
[315123829,1708863047674,-2261.21,0.00026376,2]
[315123830,1708863047683,-500.0,0.00026376,2]
[315123831,1708863047692,-508.78773654,0.00026376,2]
[315123832,1708863047702,-500.0,0.00026376,2]
[315123833,1708863047711,-500.0,0.00026376,2]
[315123834,1708863047720,-695.04,0.00026376,2]
[315123835,1708863047729,-500.0,0.00026376,2]
[315123836,1708863047739,-500.0,0.00026376,2]
[315123837,1708863047748,-500.0,0.00026376,2]
[315123838,1708863047757,-764.68,0.00026376,2]
[315123839,1708863047766,-500.0,0.00026376,2]
[315123840,1708863047775,-1007.59,0.00026376,2]
[315123841,1708863047784,-599.77760896,0.00026376,2]
[315123842,1708863047793,-500.0,0.00026376,2]
[315123843,1708863047802,-500.0,0.00026376,2]
[315123844,1708863047811,-500.0,0.00026376,2]
[315123845,1708863047821,-538.90258242,0.00026376,2]
[315123846,1708863047830,-513.160348,0.00026376,2]
[315123847,1708863047838,-500.0,0.00026376,2]
[315123848,1708863047848,-1419.06,0.00026376,2]
[315123849,1708863047857,-666.92,0.00026376,2]
[315123850,1708863047866,-500.0,0.00026376,2]
[315123851,1708863047875,-536.87075714,0.00026376,2]
[315123852,1708863047884,-500.0,0.00026376,2]
[315123853,1708863047894,-1127.49,0.00026376,2]
[315123854,1708863047903,-500.0,0.00026376,2]
[315123855,1708863047913,-508.3135829,0.00026376,2]
[315123856,1708863047922,-500.0,0.00026376,2]
[315123857,1708863047932,-1196.18,0.00026376,2]
[315123858,1708863047941,-500.0,0.00026376,2]
[315123859,1708863047950,-676.48,0.00026376,2]
[315123860,1708863047959,-500.0,0.00026376,2]
[315123861,1708863047968,-1398.18,0.00026376,2]
[315123862,1708863047977,-4255.58,0.00026376,2]
[315123863,1708863047987,-500.0,0.00026376,2]
[315123864,1708863047996,-652.96,0.00026376,2]
[315123865,1708863048005,-500.0,0.00026376,2]
[315123866,1708863048015,-1096.09,0.00026376,2]
[315123867,1708863048024,-500.0,0.00026376,2]
[315123868,1708863048033,-500.0,0.00026376,2]
[315123869,1708863048042,-4781.35,0.00026376,2]
[315123870,1708863048052,-500.0,0.00026376,2]
[315123871,1708863048061,-500.0,0.00026376,2]
[315123872,1708863048070,-500.0,0.00026376,2]
[315123873,1708863048078,-500.0,0.00026376,2]
[315123874,1708863048088,-237.60155419,0.00026376,2]
[315123875,1708863048097,-952.18,0.00026376,2]
[315123876,1708863048107,-500.0,0.00026376,2]
[315123877,1708863048116,-500.0,0.00026376,2]
[315123878,1708863048125,-500.0,0.00026376,2]
[315123879,1708863048134,-500.0,0.00026376,2]
[315123880,1708863048143,-518.98195884,0.00026376,2]
[315123881,1708863048153,-500.0,0.00026376,2]
[315123882,1708863048162,-516.81270832,0.00026376,2]
[315123883,1708863048171,-500.0,0.00026376,2]
[315123884,1708863048181,-511.19897968,0.00026376,2]
[315123885,1708863048190,-1310.69,0.00026376,2]
[315123886,1708863048200,-500.0,0.00026376,2]
[315123887,1708863048210,-500.0,0.00026376,2]
[315123888,1708863048219,-517.25907461,0.00026376,2]
[315123889,1708863048229,-513.04,0.00026376,2]
[315123890,1708863048238,-584.04562952,0.00026376,2]
[315123891,1708863048248,-500.0,0.00026376,2]
[315123892,1708863048257,-4016.51,0.00026376,2]
[315123893,1708863048266,-515.31695024,0.00026376,2]
[315123894,1708863048275,-500.0,0.00026376,2]
[315123895,1708863048285,-517.65164102,0.00026376,2]
[315123896,1708863048294,-500.0,0.00026376,2]
[315123897,1708863048305,-500.0,0.00026376,2]
[315123898,1708863048314,-543.86774136,0.00026376,2]
[315123899,1708863048323,-2853.27,0.00026376,2]